bitfinex-derivatives/quotes_ETHF0:USTF0_20260120
["timestamp","ask_amount","ask_price","bid_price","bid_amount"]
[1768898416514,0.1618,3093.6,3091.9,2.567]
[1768898417308,3.63424639,3094.0,3092.0,3.40458028]
[1768898417514,0.94380086,3093.9,3092.0,3.40458028]
[1768898417709,0.94380086,3093.8,3092.0,3.40458028]
[1768898417913,1.28991391,3094.2,3092.0,3.40458028]
[1768898418122,0.94383256,3094.1,3092.0,3.40458028]
[1768898418310,1.28991391,3094.2,3092.0,3.56646028]
[1768898418311,0.94383256,3094.0,3092.0,3.56646028]
[1768898418513,0.00388074,3094.4,3091.9,2.567]
[1768898418514,0.00388074,3094.4,3092.2,3.56645028]
[1768898418710,0.94395126,3094.3,3092.2,3.56645028]
[1768898418915,0.00388074,3094.4,3092.4,3.40458028]
[1768898419116,0.94408218,3094.3,3092.4,3.40458028]
[1768898419315,0.00388074,3094.4,3092.4,3.40458028]
[1768898419723,0.00388074,3094.4,3092.7,3.40458028]
[1768898419916,0.16564074,3094.4,3092.8,2.557]
[1768898420116,0.16564074,3094.4,3092.7,5.96158028]
[1768898421520,0.00388074,3094.4,3092.8,3.40458028]
[1768898424327,0.00388074,3094.4,3093.0,3.36625539]
[1768898426526,0.00388074,3094.4,3093.1,9.14325539]
[1768898427334,0.00388074,3094.4,3093.2,3.36625539]
[1768898429830,0.00388074,3094.4,3093.3,2.533]
[1768898430023,0.00388074,3094.4,3092.5,3.36625539]
[1768898430227,0.00388074,3094.4,3092.6,9.13325539]
[1768898430820,0.00388074,3094.4,3092.7,3.36625539]
[1768898431624,0.00388074,3094.4,3092.8,2.536]
[1768898432318,0.16177,3094.2,3092.4,3.235]
[1768898432526,0.94740708,3094.1,3092.5,2.534]
[1768898432727,0.94740708,3094.0,3092.2,44.16625539]
[1768898432922,0.94724887,3093.9,3092.2,3.36625539]
[1768898433137,0.16178,3094.0,3092.3,5.779]
[1768898433425,0.94725622,3093.9,3092.3,5.779]
[1768898433634,0.94725622,3093.8,3092.3,5.779]
[1768898433833,0.94725622,3093.7,3092.2,3.36625539]
[1768898434035,0.16178,3094.0,3092.3,2.551]
[1768898434226,1.10950722,3093.9,3092.3,2.551]
[1768898434425,0.94772722,3093.8,3092.3,2.551]
[1768898434727,0.94772722,3093.7,3092.3,2.551]
[1768898434934,0.16178,3093.9,3092.3,2.551]
[1768898435134,0.94565932,3093.8,3092.3,2.551]
[1768898435425,0.94565932,3093.7,3092.3,5.91725539]
[1768898435632,0.16178,3093.9,3092.3,5.91725539]
[1768898435832,0.94563269,3093.8,3092.3,5.91725539]
[1768898436031,0.94563269,3093.7,3092.3,5.91725539]
[1768898436222,0.16181,3093.5,3092.3,5.91725539]
[1768898437139,0.16177,3094.1,3092.4,3.36625539]
[1768898437338,0.94563216,3094.0,3092.4,3.36625539]
[1768898437532,0.94563216,3093.9,3092.4,3.36625539]
[1768898437731,0.94563216,3093.8,3092.4,3.36625539]
[1768898437933,0.16177,3094.1,3092.4,3.36625539]
[1768898438133,0.94564477,3094.0,3092.4,3.36625539]
[1768898438335,0.94564477,3093.9,3092.4,3.36625539]
[1768898438529,0.16177,3094.1,3092.4,3.36625539]
[1768898438834,0.94580619,3094.0,3092.4,3.36625539]
[1768898439141,0.94580619,3093.9,3092.4,3.36625539]
[1768898439327,0.16177,3094.1,3092.4,3.36625539]
[1768898439525,0.94585797,3094.0,3092.4,3.36625539]
[1768898439728,0.94585797,3093.9,3092.4,3.36625539]
[1768898439936,0.16178,3094.0,3092.4,3.36625539]
[1768898440138,0.94585752,3093.9,3092.4,3.36625539]
[1768898440340,0.16178,3094.0,3092.4,3.36625539]
[1768898440539,0.94595549,3093.9,3092.4,3.36625539]
[1768898440840,0.16178,3094.0,3092.4,3.36625539]
[1768898441037,0.94595605,3093.9,3092.4,3.36625539]
[1768898441237,0.16178,3094.0,3092.5,2.62]
[1768898441436,0.94590249,3093.9,3092.5,2.62]
[1768898441640,0.16178,3094.0,3092.5,2.62]
[1768898441944,0.94596524,3093.9,3092.6,2.622]
[1768898442240,0.94596524,3093.8,3092.6,2.622]
[1768898442441,0.16178,3094.0,3092.6,2.622]
[1768898442741,0.94595785,3093.9,3092.6,2.622]
[1768898442940,0.94595785,3093.8,3092.6,2.622]
[1768898443142,0.16178,3094.0,3092.6,2.622]
[1768898443344,0.94596134,3093.9,3092.6,2.622]
[1768898443644,1.13202465,3094.4,3092.7,3.32520058]
[1768898443837,2.0780675,3094.4,3092.7,3.32520058]
[1768898444639,2.2398275,3094.4,3092.7,3.32520058]
[1768898444841,1.51284532,3094.3,3092.8,2.617]
[1768898445040,0.94604285,3094.2,3092.8,2.617]
[1768898445747,0.94604285,3094.2,3092.9,3.32520058]
[1768898445937,0.00388074,3094.4,3092.9,3.32520058]
[1768898446142,0.94657954,3094.3,3092.9,3.32520058]
[1768898446339,0.00388074,3094.4,3092.9,5.93820058]
[1768898446543,1.13202465,3094.4,3092.9,5.93820058]
[1768898446850,1.13202465,3094.4,3092.9,5.93720058]
[1768898447050,0.16177,3094.1,3092.3,3.236]
[1768898447246,0.9466325,3094.0,3092.4,2.611]
[1768898447436,0.9466325,3093.9,3092.4,2.611]
[1768898447641,0.9466325,3093.8,3092.5,3.32520058]
[1768898447843,0.9466325,3093.7,3092.5,3.32520058]
[1768898448038,1.12814391,3094.2,3092.5,3.32520058]
[1768898448239,0.94666954,3094.1,3092.5,3.32520058]
[1768898448448,1.13202465,3094.4,3092.7,3.32520058]
[1768898448449,0.00388074,3094.4,3092.7,3.32520058]
[1768898448646,0.94692694,3094.3,3092.9,3.32520058]
[1768898448846,0.00388074,3094.4,3092.9,3.32520058]
[1768898449047,0.00388074,3094.4,3092.9,3.48703058]
[1768898451449,0.00388074,3094.4,3093.2,3.32520058]
[1768898451648,10.307,3095.2,3093.4,3.32520058]
[1768898451854,1.28983391,3095.7,3093.8,3.32520058]
[1768898452058,0.94690644,3095.6,3093.8,3.32520058]
[1768898452355,0.94690644,3095.5,3093.8,3.32520058]
[1768898452553,4.27019437,3095.4,3093.9,4.26924455]
[1768898452751,4.27019437,3095.4,3093.4,3.32520058]
[1768898452752,0.16171,3095.2,3093.7,0.00248753]
[1768898452951,0.94629784,3095.1,3093.7,3.32768811]
[1768898453153,0.00367331,3095.5,3093.7,3.32768811]
[1768898453353,0.00367331,3095.5,3093.8,5.847]
[1768898453653,3.58349816,3095.3,3093.7,0.00248753]
[1768898453956,0.16172,3095.0,3093.7,0.00248753]
[1768898455354,3.58349816,3095.3,3093.7,0.00248753]
[1768898455552,0.94517139,3095.2,3093.7,0.00248753]
[1768898455750,0.94517139,3095.1,3093.7,0.00248753]
[1768898455950,0.94517139,3095.0,3093.7,0.00248753]
[1768898456151,3.58349816,3095.3,3093.7,0.00248753]
[1768898456351,0.9451713,3095.2,3093.7,0.00248753]
[1768898456551,0.9451713,3095.1,3093.7,0.00248753]
[1768898456742,0.9451713,3095.0,3093.7,0.00248753]
[1768898456947,3.58349816,3095.3,3093.7,0.00248753]
[1768898457158,0.94508451,3095.2,3093.7,0.00248753]
[1768898457364,0.94508451,3095.1,3093.7,0.00248753]
[1768898457559,0.94508451,3095.0,3093.7,0.00248753]
[1768898457749,3.74520816,3095.3,3093.7,0.00248753]
[1768898458046,0.94497322,3095.2,3093.7,0.00248753]
[1768898458244,0.94497322,3095.1,3093.7,0.00248753]
[1768898458447,0.94497322,3095.0,3093.7,0.00248753]
[1768898458645,0.94483141,3094.9,3093.7,0.00248753]
[1768898458862,3.58349816,3095.2,3093.7,0.00248753]
[1768898459059,0.94487303,3095.1,3093.7,0.00248753]
[1768898459258,0.94487303,3095.1,3093.7,3.46791729]
[1768898459259,0.94487303,3095.0,3093.7,3.46791729]
[1768898459461,0.16172,3095.1,3093.7,3.46791729]
[1768898460562,0.16172,3095.1,3093.7,0.00248753]
[1768898461364,0.16174,3094.8,3093.7,0.00248753]
[1768898462266,0.16171,3095.2,3093.7,3.46791729]
[1768898462459,1.10636434,3095.1,3093.7,0.00248753]
[1768898462654,0.94464434,3095.0,3093.7,0.00248753]
[1768898462861,0.16172,3095.1,3093.7,0.00248753]
[1768898463160,0.94471248,3095.0,3093.7,0.00248753]
[1768898463368,0.16172,3095.0,3093.7,0.00248753]
[1768898463864,0.94471848,3094.9,3093.7,0.00248753]
[1768898464065,0.16172,3095.0,3093.7,0.00248753]
[1768898465267,0.94025274,3094.9,3093.7,0.00248753]
[1768898465457,0.16172,3095.0,3093.7,0.00248753]
[1768898465652,0.94030724,3094.9,3093.7,0.00248753]
[1768898465857,0.16175,3094.5,3092.7,3.46542976]
[1768898466063,3.74524816,3094.5,3092.7,3.46542976]
[1768898466366,0.16177,3094.1,3092.5,2.59]
[1768898466862,0.16177,3094.1,3092.5,2.59274563]
[1768898467263,3.58349816,3094.3,3092.5,0.00274563]
[1768898467566,0.16179,3093.7,3092.5,0.00274563]
[1768898468061,3.58349816,3094.1,3092.5,0.00274563]
[1768898468256,0.94005005,3094.0,3092.5,3.46817539]
[1768898468452,0.16176,3094.3,3092.5,3.46817539]
[1768898468660,0.94015125,3094.2,3092.5,3.46817539]
[1768898468865,0.16176,3094.3,3092.5,3.46817539]
[1768898469069,0.94019674,3094.2,3092.5,3.46817539]
[1768898469268,3.58349816,3094.3,3092.5,3.46817539]
[1768898469565,0.94019287,3094.2,3092.5,3.46817539]
[1768898469769,0.94019287,3094.1,3092.5,3.46817539]
[1768898469969,3.58349816,3094.3,3092.5,3.46817539]
[1768898470176,0.94019844,3094.2,3092.5,3.46817539]
[1768898470357,0.94019844,3094.1,3092.5,3.46817539]
[1768898470562,0.16177,3094.1,3092.5,3.46817539]
[1768898471370,1.12814391,3094.6,3092.5,3.46817539]
[1768898471571,0.94026048,3094.5,3092.5,3.46817539]
[1768898471771,0.94026048,3094.4,3092.5,3.63002539]
[1768898471969,0.94026048,3094.3,3092.5,3.63002539]
[1768898472173,0.16174,3094.7,3092.5,3.63002539]
[1768898472379,0.16174,3094.7,3092.8,3.62726976]
[1768898472971,1.12814391,3095.2,3093.0,3.62725976]
[1768898473171,2.06863817,3095.2,3093.0,3.62725976]
[1768898473571,0.4069139,3095.1,3093.0,3.62725976]
[1768898473871,0.94049426,3095.0,3093.0,3.62725976]
[1768898474071,0.94049426,3094.9,3093.0,3.62725976]
[1768898474268,0.94049426,3094.9,3093.2,3.46542976]
[1768898474964,0.94049426,3094.9,3093.2,3.62724976]
[1768898475171,1.13181722,3095.5,3093.9,3.46542976]
[1768898475366,0.00367331,3095.5,3093.9,3.46542976]
[1768898476267,0.16537331,3095.5,3093.9,3.46542976]
[1768898476665,0.00367331,3095.5,3093.9,3.46542976]
[1768898478268,0.00367331,3095.5,3093.9,6.03042976]
[1768898478469,0.00367331,3095.5,3094.0,3.46542976]
[1768898479274,1.28978391,3096.6,3094.6,3.46542976]
[1768898479473,0.941009,3096.4,3094.6,3.46542976]
[1768898479674,0.941009,3096.3,3094.6,3.46542976]
[1768898479884,0.16164,3096.6,3094.6,3.46542976]
[1768898480071,0.94099186,3096.4,3094.6,3.46542976]
[1768898480272,0.94099186,3096.3,3094.6,3.46542976]
[1768898480473,0.00388091,3096.4,3094.6,3.46542976]
[1768898481473,0.16553091,3096.4,3094.6,3.46542976]
[1768898481673,3.74516816,3096.2,3094.4,3.46542976]
[1768898482268,0.16167,3096.2,3094.4,3.46542976]
[1768898482473,0.00388091,3096.4,3094.4,3.46542976]
[1768898484372,3.42338312,3095.9,3093.8,3.46469051]
[1768898484572,0.16169,3095.7,3093.8,3.46469051]
[1768898487387,0.00388091,3096.4,3094.3,3.46469051]
[1768898487675,0.00388091,3096.4,3094.5,3.46469051]
[1768898487879,0.00388091,3096.4,3094.7,3.46469051]
[1768898488084,0.00388091,3096.4,3094.9,3.46469051]
[1768898488773,0.66530077,3096.5,3095.1,3.46469051]
[1768898489978,0.6679207,3096.5,3095.1,3.46469051]
[1768898491278,0.6679207,3096.5,3095.3,3.46469051]
[1768898495577,0.16161,3097.3,3095.5,3.46469051]
[1768898496580,0.16482641,3097.3,3095.5,3.46469051]
[1768898496985,0.00321641,3097.3,3095.5,3.46469051]
[1768898497281,0.00321641,3097.3,3095.7,3.46469051]
[1768898497882,1.12814391,3098.5,3096.1,3.46469051]
[1768898498180,0.16154,3098.6,3096.6,3.46469051]
[1768898498386,3.58492312,3098.6,3096.7,5.76]
[1768898498590,0.16152,3099.0,3096.8,3.46469051]
[1768898498782,0.16153,3098.8,3096.8,3.46469051]
[1768898499087,1.09707021,3098.7,3096.9,5.76]
[1768898499292,0.16154,3098.5,3096.9,5.76339067]
[1768898499685,0.16154,3098.5,3096.9,0.00339067]
[1768898499982,0.16154,3098.5,3096.9,2.52739067]
[1768898500286,3.42338312,3098.7,3096.9,5.99208118]
[1768898500488,3.58491312,3098.7,3096.9,3.46808118]
[1768898501281,0.00311574,3098.8,3096.9,3.46808118]
[1768898501587,0.00311574,3098.8,3097.1,3.46469051]
[1768898501886,0.16153,3098.7,3097.1,3.46469051]
[1768898503382,0.16154,3098.6,3097.1,3.46469051]
[1768898504590,0.16154,3098.5,3096.9,0.00339067]
[1768898504889,3.56118182,3098.4,3096.9,0.00339067]
[1768898505186,3.39963182,3098.2,3096.9,0.00339067]
[1768898505390,3.39963182,3098.0,3096.9,0.00339067]
[1768898505582,1.12854935,3098.5,3096.9,0.00339067]
[1768898505583,3.39963182,3097.9,3096.9,0.00339067]
[1768898506390,0.16158,3097.7,3096.0,3.47913882]
[1768898507091,0.16159,3097.6,3096.0,3.47913882]
[1768898507285,0.16159,3097.6,3096.0,3.48234534]
[1768898507483,0.93594403,3097.5,3096.0,0.00320652]
[1768898507683,3.39963182,3097.6,3096.0,0.00320652]
[1768898507885,0.93596174,3097.5,3096.0,0.00320652]
[1768898508191,0.16161,3097.2,3096.0,0.00320652]
[1768898508687,0.16162,3097.0,3096.0,0.00320652]
[1768898511893,0.16164,3096.7,3094.9,3.47913882]
[1768898512595,1.12854935,3097.1,3094.9,3.47913882]
[1768898512796,0.16163,3096.8,3094.9,3.48145158]
[1768898513090,0.93750676,3096.7,3094.9,3.48145158]
[1768898513284,0.93750676,3096.6,3094.9,3.48145158]
[1768898513483,0.93752993,3096.5,3094.9,3.48145158]
[1768898513684,0.93752993,3096.4,3094.9,0.00231276]
[1768898513885,3.64928104,3096.5,3094.9,0.00231276]
[1768898514199,0.16166,3096.3,3094.9,0.00231276]
[1768898515097,3.81094104,3096.3,3094.9,0.00231276]
[1768898515390,0.93773386,3096.2,3094.9,0.00231276]
[1768898515598,0.16166,3096.2,3094.9,0.00231276]
[1768898518603,0.16167,3096.1,3094.9,0.00231276]
[1768898518792,4.58776661,3096.0,3094.9,0.00231276]
[1768898518986,4.58776661,3095.9,3094.9,0.00231276]
[1768898519188,3.81097104,3095.7,3093.9,3.55101919]
[1768898520195,3.81097104,3095.7,3093.9,3.55446016]
[1768898520390,0.9374911,3095.6,3093.9,3.55446016]
[1768898520592,0.1617,3095.5,3093.9,3.55446016]
[1768898521188,0.16167,3096.1,3093.9,3.55446016]
[1768898521501,0.93728653,3096.0,3093.9,3.71624016]
[1768898521691,0.93728653,3095.9,3093.9,3.71624016]
[1768898521891,4.77783039,3096.2,3093.9,3.71624016]
[1768898521892,0.93728653,3095.8,3094.0,3.55101919]
[1768898522210,0.93728653,3095.8,3093.9,0.00344097]
[1768898522211,0.1617,3095.5,3093.9,0.00344097]
[1768898522502,3.81098104,3095.5,3093.9,0.00344097]
[1768898522996,3.64928104,3095.3,3093.9,0.00344097]
[1768898523197,1.12854935,3095.6,3093.9,0.00344097]
[1768898523198,3.64928104,3095.1,3093.9,0.00344097]
[1768898523498,0.16173,3094.9,3093.9,0.00344097]
[1768898524203,0.16174,3094.8,3093.9,0.00344097]
[1768898524503,3.81102104,3094.7,3093.0,3.55101919]
[1768898524909,0.16175,3094.5,3093.0,3.55101919]
[1768898525101,0.16175,3094.5,3092.5,6.78401919]
[1768898525302,0.16176,3094.4,3092.5,6.78401919]
[1768898525599,0.16176,3094.4,3092.5,3.55340686]
[1768898525600,0.16176,3094.3,3092.5,3.55340686]
[1768898526497,3.81104104,3094.3,3092.5,3.55340686]
[1768898526889,3.64928104,3094.3,3092.5,0.00238767]
[1768898527097,3.81105104,3094.1,3092.5,0.00238767]
[1768898527894,3.81106104,3094.0,3092.5,0.00238767]
[1768898528103,3.81106104,3093.9,3092.5,0.00238767]
[1768898528501,3.81106104,3093.9,3091.5,1.072]
[1768898528502,3.81109104,3093.5,3091.5,3.55101919]
[1768898529502,3.81109104,3093.5,3091.5,3.55481189]
[1768898529906,0.16182,3093.2,3091.5,3.55481189]
[1768898533799,3.81111104,3093.1,3091.5,0.0037927]
[1768898535803,0.16184,3092.7,3091.5,0.0037927]
[1768898535996,3.81112104,3092.7,3091.5,0.0037927]
[1768898536596,0.16186,3092.4,3091.5,0.0037927]
[1768898537299,3.64928104,3092.6,3090.2,3.236]
[1768898537501,0.16188,3092.0,3090.3,3.55101919]
[1768898537694,3.81116104,3092.0,3090.0,1.01001867]
[1768898537900,3.81117104,3091.9,3089.8,6.78701919]
[1768898538102,3.81117104,3091.9,3089.9,3.55101919]
[1768898538495,3.81392484,3091.9,3089.9,3.55423885]
[1768898541308,5.017,3092.5,3089.9,3.55423885]
[1768898541309,3.64928104,3092.9,3090.9,3.55101919]
[1768898541815,1.12854935,3093.4,3091.1,3.71293919]
[1768898541816,3.64928104,3093.4,3091.1,3.71293919]
[1768898542015,3.64928104,3093.4,3091.2,0.16192]
[1768898542312,0.1618,3093.6,3091.5,3.55101919]
[1768898542513,0.16502238,3093.6,3091.5,3.55101919]
[1768898543102,0.16502238,3093.6,3091.5,3.71291919]
[1768898544017,3.48123032,3093.6,3091.5,3.71291919]
[1768898544209,3.31620794,3093.5,3091.5,3.71291919]
[1768898544910,3.31620794,3093.3,3091.5,3.55101919]
[1768898545106,3.47801794,3093.3,3091.0,3.37835144]
[1768898545709,3.47802794,3093.1,3091.0,3.37835144]
[1768898546111,0.16184,3092.8,3091.0,3.37835144]
[1768898546409,3.31620794,3092.7,3090.3,3.37835144]
[1768898546615,3.47806794,3092.5,3090.3,3.37835144]
[1768898547515,0.16186,3092.4,3090.3,3.37835144]
[1768898547809,3.47806794,3092.4,3090.3,3.37835144]
[1768898548110,3.47806794,3092.4,3090.3,3.54032144]
[1768898549420,3.47807794,3092.3,3090.3,3.37835144]
[1768898550617,0.16188,3092.1,3090.3,3.37835144]
[1768898550811,4.25624012,3092.0,3090.3,3.37835144]
[1768898551003,3.31620794,3092.0,3090.3,3.37835144]
[1768898551319,0.94061453,3091.9,3090.3,3.37835144]
[1768898551513,3.31620794,3092.0,3090.3,3.37835144]
[1768898551710,0.94062828,3091.9,3090.3,3.37835144]
[1768898551909,3.47808794,3092.0,3090.3,3.37835144]
[1768898552117,0.94072702,3091.9,3090.3,3.37835144]
[1768898552420,3.47808794,3092.0,3090.3,3.37835144]
[1768898552421,0.94155542,3091.8,3090.3,3.37835144]
[1768898552718,3.47808794,3092.0,3090.3,3.37835144]
[1768898553017,0.94139225,3091.9,3090.3,3.37835144]
[1768898553218,0.94201592,3091.8,3090.3,3.37835144]
[1768898553415,3.47808794,3092.0,3090.3,3.37835144]
[1768898553618,0.94201664,3091.9,3090.3,3.37835144]
[1768898553917,0.94201664,3091.8,3090.3,3.37835144]
[1768898554118,0.9427185,3091.7,3090.3,3.37835144]
[1768898554306,3.47808794,3092.0,3090.3,3.37835144]
[1768898554511,0.94801273,3091.9,3090.3,3.37835144]
[1768898554813,0.94801273,3091.8,3090.3,3.37835144]
[1768898555015,0.94801273,3091.7,3090.3,3.37835144]
[1768898555213,0.94801273,3091.6,3090.3,3.37835144]
[1768898555412,4.60663729,3092.0,3090.3,3.37835144]
[1768898555612,0.94873578,3091.9,3090.3,3.37835144]
[1768898555809,4.60665729,3091.7,3089.9,3.3815711]
[1768898556014,0.94873578,3091.6,3089.9,3.5435611]
[1768898556314,2.07728513,3091.6,3089.9,3.5435611]
[1768898556517,2.07728513,3091.6,3090.1,3.37835144]
[1768898556518,0.94873578,3091.6,3090.1,3.37835144]
[1768898556713,0.94873578,3091.5,3090.1,3.37835144]
[1768898556912,0.94873578,3091.4,3090.1,3.37835144]
[1768898557117,0.94873578,3091.3,3090.1,3.37835144]
[1768898557726,1.12854935,3092.1,3090.4,3.54031144]
[1768898557912,1.12854935,3092.3,3090.6,3.37835144]
[1768898558419,1.12854935,3092.3,3090.9,3.37835144]
[1768898558620,0.0027509,3092.3,3090.9,3.37835144]
[1768898559224,0.0027509,3092.3,3091.1,3.37835144]
[1768898559409,0.0027509,3092.3,3091.4,3.37835144]
[1768898559610,1.12854935,3093.0,3091.5,3.37835144]
[1768898560311,1.29037935,3092.9,3090.8,3.37835144]
[1768898560509,1.12854935,3092.6,3090.9,9.05035144]
[1768898560712,1.12854935,3092.6,3090.9,3.37835144]
[1768898561718,1.12854935,3092.6,3090.9,3.54029144]
[1768898561917,1.12854935,3092.7,3090.9,3.54029144]
[1768898562117,1.12854935,3092.6,3090.9,3.54029144]
[1768898562518,1.12854935,3092.6,3090.9,3.37835144]
[1768898562519,1.29039935,3092.6,3090.9,3.37835144]
[1768898562715,1.12854935,3092.5,3090.9,3.37835144]
[1768898563417,4.73567737,3092.5,3090.4,0.16196]
[1768898563620,1.12854935,3092.3,3090.4,3.76472672]
[1768898564214,1.12854935,3092.4,3090.4,3.76472672]
[1768898564718,1.12854935,3092.4,3090.5,3.76472672]
[1768898564923,1.12854935,3092.3,3090.5,3.76472672]
[1768898565222,1.12854935,3092.4,3090.5,3.76472672]
[1768898566419,1.12854935,3092.3,3090.5,3.76472672]
[1768898566619,1.12854935,3092.2,3090.9,3.60276672]
[1768898566928,1.12854935,3092.5,3090.9,3.60276672]
[1768898567419,1.12854935,3092.7,3091.1,3.60276672]
[1768898567611,1.13245799,3092.9,3091.1,3.76469672]
[1768898568018,4.89751737,3092.8,3091.1,3.60276672]
[1768898568318,4.73567737,3092.6,3090.6,3.76473672]
[1768898568524,1.12854935,3092.5,3090.6,3.76473672]
[1768898568827,1.12854935,3092.5,3090.8,3.60276672]
[1768898569026,1.12854935,3092.5,3090.8,3.76472672]
[1768898569320,1.12854935,3092.8,3091.2,3.60276672]
[1768898570825,2.07551858,3092.8,3091.2,3.60276672]
[1768898571226,0.94696923,3092.7,3091.2,3.60276672]
[1768898571519,3.76899802,3092.5,3090.6,3.60276672]
[1768898571725,4.55409725,3092.4,3090.6,3.60276672]
[1768898571920,0.94696923,3092.3,3090.6,3.60276672]
[1768898572124,0.16189,3092.2,3090.6,3.60276672]
[1768898572319,0.94696923,3092.1,3090.6,3.60276672]
[1768898572525,1.29043935,3092.2,3090.1,3.76476672]
[1768898572729,0.94696923,3092.1,3090.1,3.76476672]
[1768898573433,1.10885923,3092.1,3090.2,3.50066845]
[1768898573624,0.94696923,3092.0,3090.2,3.50066845]
[1768898575524,0.94696923,3092.0,3090.3,0.16198]
[1768898575830,0.94696923,3092.0,3090.6,3.33867845]
[1768898576030,0.94696923,3091.9,3090.6,3.33867845]
[1768898576327,0.94696923,3091.8,3090.6,3.33867845]
[1768898576527,1.12854935,3092.3,3090.6,3.33867845]
[1768898576730,1.12854935,3092.1,3090.6,3.33867845]
[1768898578132,1.12854935,3092.2,3090.6,3.33867845]
[1768898578530,1.12854935,3092.1,3090.6,3.33867845]
[1768898578734,0.94804637,3092.0,3090.6,3.33867845]
[1768898578929,0.94804637,3091.9,3090.6,3.33867845]
[1768898579227,1.69762355,3092.3,3090.0,2.416]
[1768898579228,1.12854935,3092.6,3091.1,3.33867845]
[1768898579435,1.12854935,3092.7,3091.1,3.33867845]
[1768898580628,1.29430799,3092.9,3091.2,3.50061845]
[1768898580929,1.29430799,3092.9,3091.5,3.33867845]
[1768898580930,0.00390864,3092.9,3091.5,3.33867845]
[1768898581133,0.00390864,3092.9,3091.5,3.50059845]
[1768898581523,3.6592237,3092.8,3091.0,3.33867845]
[1768898581724,4.62591305,3092.7,3091.0,3.33867845]
[1768898582126,3.4973637,3092.7,3091.0,3.33867845]
[1768898582325,0.16188,3092.3,3090.4,3.33867845]
[1768898582528,3.4973637,3092.1,3090.0,2.404]
[1768898582726,0.1619,3092.0,3090.0,5.74267845]
[1768898583322,0.1619,3092.0,3090.0,5.90467845]
[1768898583528,0.1619,3092.0,3090.1,3.50067845]
[1768898584335,1.12854935,3092.2,3090.4,3.50065845]
[1768898584534,1.29041935,3092.5,3090.4,3.50065845]
[1768898584735,4.78778305,3092.5,3090.4,3.50065845]
[1768898584924,4.62591305,3092.4,3090.4,3.50065845]
[1768898585127,3.4973637,3092.4,3090.4,3.50065845]
[1768898586638,3.4973637,3092.4,3090.4,5.89865845]
[1768898587138,1.13245799,3092.9,3091.3,3.50060845]
[1768898587339,0.00390864,3092.9,3091.5,3.33867845]
[1768898587938,0.00390864,3092.9,3091.7,3.33867845]
[1768898588135,0.00390864,3092.9,3091.6,2.397]
[1768898588136,1.12854935,3093.6,3091.9,3.33867845]
[1768898588341,0.16181,3093.7,3091.9,3.33867845]
[1768898588644,0.16181,3093.7,3091.9,3.50057845]
[1768898588836,0.16181,3093.7,3092.0,2.396]
[1768898589031,0.165799,3093.7,3092.0,2.396]
[1768898589227,0.003989,3093.7,3092.1,3.33867845]
[1768898589433,0.003989,3093.7,3092.1,0.00345318]
[1768898590438,3.5013527,3093.7,3092.1,0.00345318]
[1768898590632,3.4973637,3093.4,3092.1,0.00345318]
[1768898591236,0.94123245,3093.3,3092.1,0.00345318]
[1768898591539,0.94123245,3093.2,3092.1,0.00345318]
[1768898591839,0.16183,3093.4,3092.1,0.00345318]
[1768898592033,0.94115313,3093.3,3092.1,0.00345318]
[1768898592236,0.16183,3093.4,3092.1,0.00345318]
[1768898592446,0.94099664,3093.3,3092.1,0.00345318]
[1768898592631,4.62990205,3093.7,3092.1,0.00345318]
[1768898592834,0.94101187,3093.6,3092.1,0.00345318]
[1768898593043,0.94101187,3093.5,3092.1,0.00345318]
[1768898593243,0.94101187,3093.4,3092.1,0.00345318]
[1768898593542,0.16183,3093.2,3092.1,0.00345318]
[1768898593842,0.94071688,3093.1,3092.1,0.00345318]
[1768898594035,0.16183,3093.2,3092.1,0.00345318]
[1768898595039,0.94096967,3093.1,3092.1,0.00345318]
[1768898595239,0.16183,3093.2,3092.1,0.00345318]
[1768898595436,4.60026085,3093.1,3092.1,0.00345318]
[1768898595639,4.43836876,3093.0,3092.1,0.00345318]
[1768898595840,3.4973637,3093.0,3092.1,0.00345318]
[1768898596237,0.16185,3093.0,3092.1,0.00345318]
[1768898597732,0.94098919,3092.9,3092.1,0.00345318]
[1768898597939,0.16185,3093.0,3092.1,0.00345318]
[1768898599544,3.4973637,3093.4,3092.1,0.00345318]
[1768898599746,4.43840695,3093.3,3092.1,0.00345318]
[1768898599947,0.94104325,3093.2,3092.1,0.00345318]
[1768898601536,0.003989,3093.7,3092.1,3.50402163]
[1768898601741,0.003989,3093.7,3092.3,3.33867845]
[1768898601942,0.003989,3093.7,3092.3,3.50055845]
[1768898602839,1.29031935,3094.5,3092.7,3.33867845]
[1768898603151,0.94097135,3094.4,3092.9,3.33867845]
[1768898603350,1.12854935,3094.8,3092.9,3.33867845]
[1768898603844,2.23467171,3094.8,3092.9,3.33867845]
[1768898604041,0.94059617,3094.7,3092.9,3.33867845]
[1768898604238,0.94059617,3094.6,3092.9,3.33867845]
[1768898608646,0.00377619,3094.8,3093.1,3.60788518]
[1768898608851,0.00377619,3094.8,3093.2,3.76971518]
[1768898609647,0.00377619,3094.8,3093.5,3.76970518]
[1768898609850,0.1617,3095.7,3093.9,3.60788518]
[1768898610055,0.93969912,3095.6,3093.9,3.60788518]
[1768898610255,0.1617,3095.7,3093.9,3.60788518]
[1768898610456,0.93902612,3095.6,3093.9,3.60788518]
[1768898610651,0.1617,3095.7,3093.9,3.60788518]
[1768898610959,1.10075865,3095.6,3093.9,3.60788518]
[1768898611147,0.16171,3095.6,3093.9,3.60788518]
[1768898611345,0.00297937,3095.7,3094.1,3.60788518]
[1768898611853,0.00297937,3095.7,3094.3,3.60788518]
[1768898612053,0.00297937,3095.7,3094.3,3.77368839]
[1768898612257,0.00297937,3095.7,3094.3,5.98590839]
[1768898612454,0.00297937,3095.7,3094.4,3.60788518]
[1768898613560,0.00297937,3095.7,3094.3,2.37802321]
[1768898613561,3.47217949,3096.6,3094.7,3.60788518]
[1768898613853,1.29455454,3097.0,3094.7,3.76962518]
[1768898614058,0.93764373,3096.9,3094.7,3.76962518]
[1768898614356,0.93764373,3096.8,3094.7,3.76962518]
[1768898614554,3.47217949,3096.6,3094.7,3.60788518]
[1768898614759,3.47217949,3096.6,3094.5,2.372]
[1768898614968,0.16166,3096.3,3094.5,2.372]
[1768898615259,0.16166,3096.3,3094.5,3.76963518]
[1768898615557,0.16166,3096.3,3094.6,2.371]
[1768898615951,3.63383949,3096.3,3094.6,2.371]
[1768898616544,0.16166,3096.2,3094.5,5.97688518]
[1768898617146,3.47217949,3096.1,3094.3,0.00402321]
[1768898617352,3.47217949,3096.1,3094.4,2.369]
[1768898617658,3.63384949,3096.1,3094.4,2.369]
[1768898618557,3.63384949,3096.1,3094.4,2.367]
[1768898618859,0.16169,3095.8,3094.3,0.00402321]
[1768898619051,0.16169,3095.8,3094.3,3.61190839]
[1768898620963,0.16169,3095.8,3094.3,5.97590839]